Cogmind - Beta 14 --- EXPLORER MODE // 2024.09.09 @ 01:04:13 Player: MsNecro Result: Self-destructed Performance ------------- Evolutions (2) 1000 Regions Visited (4) 800 Robots Destroyed (34) 170 Value Destroyed (1121) 1121 Prototype IDs (15) 300 Alien Tech Used (0) 0 Bonus (163) 163 TOTAL SCORE: 3554 Bonus ------- Follower Combat Kills 334 Friendly Fire -171 Cogmind --------- Core Integrity 154/550 Matter 36/300 Energy 100/100 System Corruption 0% Temperature Cool (0) Movement Core (100) Ox1 Location -8/Materials Parts ------- > --- POWER (1) -------- (None) > --- PROPULSION (4) --- (None) > --- UTILITY (5) ------ V3-11A's Pendant > --- WEAPON (2) ------- Subdweller Machine Gun > --- INVENTORY (5) ---- Subdweller Power Source Subdweller Power Source Light Treads Large Storage Unit Peak State ------------ > --- POWER ------------ Light Ion Engine Light Nuclear Core > --- PROPULSION ------- Light Treads Light Treads Improved Treads Improved Treads Spiked Treads Advanced Treads > --- UTILITY ---------- Humpback Subdweller Optics Makeshift Light Armor Plating Tower Shield V3-11A's Pendant > --- WEAPON ----------- Heavy Assault Rifle Light Cannon Improved Grenade Launcher Improved Grenade Launcher > --- INVENTORY -------- Subdweller Power Source Subdweller Power Source Deuterium Engine Light Deuterium Engine Light Deuterium Engine Light Treads Light Treads Light Treads Spiked Treads Large Storage Unit Compact Battery Compact Matter Pod Subdweller Optics Subdweller Optics Advanced Visual Processing Unit Terrain Scanner Particle Charger Core Shielding Weapon Shielding Shield Generator Heavy Assault Rifle Heavy Assault Rifle Heavy Assault Rifle Subdweller Machine Gun Subdweller Machine Gun Light Cannon Light Cannon Improved Grenade Launcher Datajack Improved Datajack [Rating: 60] Favorites ----------- Power Light Nuclear Core Engine Light Ion Engine Power Core Light Nuclear Core Propulsion Light Treads Treads Light Treads Wheel Subdweller Monowheel Utility Humpback Device V3-11A's Pendant Storage Humpback Processor Targeting Computer Protection Core Shielding Weapon Light Cannon Ballistic Gun Heavy Assault Rifle Ballistic Cannon Light Cannon Launcher Grenade Launcher Special Melee Weapon Datajack Build | -11 -10 -10 -10 -8 ------- Run | Yrd Mat Min Sub Mat Slots Evolved 5 | . 1 . . 4 Power . | . . . . . Propulsion 2 | . . . . 2 Utility 3 | . 1 . . 2 Weapon . | . . . . . Parts Attached 59 | 6 7 6 19 21 Power 6 | 1 1 1 2 1 Engine 5 | 1 1 1 1 1 Core 1 | . . . 1 . Reactor . | . . . . . Propulsion 16 | 2 . 1 5 8 Treads 15 | 2 . 1 4 8 Leg . | . . . . . Wheel 1 | . . . 1 . Hover . | . . . . . Flight . | . . . . . Utility 15 | 2 4 3 3 3 Device 3 | . . . 2 1 Storage 3 | . 2 . 1 . Processor 2 | 1 . 1 . . Hackware . | . . . . . Protection 7 | 1 2 2 . 2 Artifact . | . . . . . Weapon 22 | 1 2 1 9 9 Energy Gun . | . . . . . Energy Cannon . | . . . . . Ballistic Gun 9 | 1 2 . 3 3 Ballistic Cannon 6 | . . . 3 3 Launcher 6 | . . . 3 3 Special Weapon . | . . . . . Impact Weapon . | . . . . . Slashing Weapon . | . . . . . Piercing Weapon . | . . . . . Special Melee Weapon 1 | . . 1 . . Unidentified Prototypes 2 | . 1 . 1 . Parts Lost 13 | . 1 . 1 11 Power 1 | . . . . 1 Propulsion 5 | . . . . 5 Utility 2 | . . . . 2 Weapon 5 | . 1 . 1 3 Highest Loss Streak 10 | . 1 . 1 10 To Critical Strikes . | . . . . . Average Slot Usage (%) 88 | . 96 99 88 78 Engine 3 | . 12 12 1 4 Core 8 | . . . 10 4 Treads 22 | . 25 25 21 27 Wheel 2 | . . . 3 . Device 3 | . . . 3 5 Storage 10 | . 8 12 12 4 Processor 1 | . 12 7 . . Protection 10 | . 16 16 9 9 Ballistic Gun 3 | . 21 12 1 5 Ballistic Cannon 11 | . . . 12 13 Launcher 7 | . . . 9 . Special Melee Weapon 1 | . . 11 . . Peak Build Rating 60 | 6 11 11 17 60 Average Rating 17 | 4 9 10 13 48 On Entrance 8 | . 6 11 10 17 Naked Turns . | . . . . . Heaviest Build 271 | 9 30 30 212 271 Greatest Support 128 | 40 40 40 40 128 Greatest Overweight (x) 70 | 2 . . 70 3 Average Overweight (x) 4 | . . . 6 2 Largest Inventory Capacity 35 | 5 15 15 35 35 Average Capacity 30 | 5 10 15 32 33 Most Carried 31 | 5 10 13 22 31 Average Carried 18 | 1 6 10 18 23 Final Capacity 35 | 5 15 15 35 5 Final Carried 22 | 2 10 12 22 4 Class Distribution -------------------- 64% | Hauler-Mutant 22% | Hacker-Mutant 12% | Hauler-Tank Dominant Class ---------------- Hacker-Mutant | -10/Materials Hacker-Mutant | -10/Mines Hauler-Mutant | -10/Subcaves Hauler-Tank | -8/Materials Resources | -11 -10 -10 -10 -8 ----------- Run | Yrd Mat Min Sub Mat Matter Collected 1501 | 81 48 286 761 325 Remotely . | . . . . . Salvage Created 992 | . 69 . 382 541 Parts 59 | . 6 . 24 29 Haulers Intercepted 1 | . . . . 1 Recyclers Shooed . | . . . . . Parts Field Recycled . | . . . . . Retrieved Matter . | . . . . . Parts Self-Destructed . | . . . . . Prevented . | . . . . . Kills | -11 -10 -10 -10 -8 ------- Run | Yrd Mat Min Sub Mat Combat Hostiles Destroyed 27 | . 2 . 13 12 Guns 9 | . 2 . 5 2 Cannons 5 | . . . . 5 AOE 13 | . . . 8 5 Classes Destroyed 11 | . 3 . 1 7 Worker 2 | . . . . 2 Builder 1 | . . . . 1 Hauler 1 | . . . . 1 Recycler 1 | . . . . 1 Watcher 1 | . 1 . . . Swarmer 3 | . 1 . . 2 Grunt 7 | . 1 . . 6 Brawler 1 | . . . . 1 Sentry 2 | . . . . 2 Hunter 1 | . . . . 1 Subdweller 14 | . . . 14 . Best Kill Streak 4 | . 1 . 4 4 Combat Bots Only 4 | . 1 . 4 2 Max Kills in Single Turn 4 | . 1 . 1 4 Gunslinging . | . . . . . Exploded 2 | . . . 1 2 Melee . | . . . . . Uniques/NPCs Destroyed . | . . . . . Combat | -11 -10 -10 -10 -8 -------- Run | Yrd Mat Min Sub Mat Hostile Shots Fired 268 | . 8 . 64 196 Missed 64 | . 3 . 22 39 Damage Taken 2403 | . 22 . 605 1776 Core 474 | . 7 . 71 396 Absorbed by Shields . | . . . . . Redirected to Shielding 11 | . . . 11 . Ignored by Resistances 1383 | . 18 . 360 1005 Core Remaining (%) 84 | 100 . . 68 . Volleys Fired 113 | . 9 . 77 27 Largest 4 | . 2 . 2 4 Hottest 130 | . 46 . 70 130 Shots Fired 217 | . 13 . 117 87 Gun 91 | . 13 . 53 25 Cannon 92 | . . . 36 56 Launcher 34 | . . . 28 6 Special . | . . . . . Kinetic 183 | . 13 . 89 81 Thermal . | . . . . . Explosive 34 | . . . 28 6 Electromagnetic . | . . . . . Robot Hit Streak 79 | . 12 . 67 79 Robot Miss Streak 2 | . . . . 2 Penetration Max . | . . . . . Secondary Targets 2 | . . . 2 . Max Gunslinging Chain 1 | . . . 1 . Shots Hit Robots 124 | . 12 1 55 56 Core Hits 58 | . 4 . 23 31 Critical Kills . | . . . . . Critical Parts Destroyed . | . . . . . Critical Strikes 2 | . . . . 2 Blast 2 | . . . . 2 Melee Attacks 1 | . . 1 . . Impact . | . . . . . Slashing . | . . . . . Piercing . | . . . . . Sneak Attacks 1 | . . 1 . . Combat Hostiles . | . . . . . Follow-up Attacks . | . . . . . Damage Inflicted 3358 | . 151 . 1569 1638 Guns 1027 | . 147 . 523 357 Cannons 600 | . . . 19 581 Explosions 1711 | . . . 1027 684 Melee . | . . . . . Ramming 20 | . 4 . . 16 Kinetic 1627 | . 147 . 542 938 Thermal 212 | . . . . 212 Explosive 1499 | . . . 1027 472 Electromagnetic . | . . . . . Impact . | . . . . . Slashing . | . . . . . Piercing . | . . . . . Highest Corruption . | . . . . . Average Corruption . | . . . . . Corruption Purged . | . . . . . Corruption Blocked . | . . . . . Overload Shots . | . . . . . Overflow Damage 27 | . . . 3 24 Projectiles . | . . . . . Explosions 26 | . . . 3 23 Melee 1 | . . . . 1 Knockbacks 6 | . . . . 6 Impact . | . . . . . Kinetic 6 | . . . . 6 Secondary . | . . . . . Self-Inflicted Damage 175 | . . . 38 137 Shots 7 | . . . 3 4 Rammed 2 | . 1 . . 1 Targets Rammed 2 | . 1 . . 1 Kicked . | . . . . . Crushed . | . . . . . Highest Temperature 590 | . 9 . . 590 Average Temperature 178 | . 4 . . 182 Received Heat Transfer 1362 | . 6 . 186 1170 Effects 22 | . . . . 22 Shutdowns 2 | . . . . 2 Energy Bleed 1 | . . . . 1 Interference 8 | . . . . 8 Matter Decay 1 | . . . . 1 Short Circuit 1 | . . . . 1 Damage (minor) 2 | . . . . 2 Damage (major) 6 | . . . . 6 Damage (core) 1 | . . . . 1 Siege Activations . | . . . . . Robots Corrupted . | . . . . . Combat Hostiles . | . . . . . Parts Fried . | . . . . . Impact Corruptions 1 | . . . . 1 Robots Melted . | . . . . . Combat Hostiles . | . . . . . Parts Melted . | . . . . . Heat Transferred 200 | . . . . 200 Parts Sabotaged . | . . . . . Parts Stolen . | . . . . . Parts Stripped . | . . . . . Power Chain Reactions . | . . . . . Alert | -11 -10 -10 -10 -8 ------- Run | Yrd Mat Min Sub Mat Peak Influence 141 | . 89 59 . 141 Initial 24 | . . 24 . . Average 40 | . 16 13 . 65 Maximum Alert Level . | . . . . . Low Security (%) 100 | 100 100 100 . 100 Level 1 . | . . . . . Level 2 . | . . . . . Level 3 . | . . . . . Level 4 . | . . . . . Level 5 . | . . . . . High Security . | . . . . . Max Security . | . . . . . Squads Dispatched 3 | . . . . 3 Investigation 1 | . . . . 1 Extermination . | . . . . . Reinforcement . | . . . . . Assault . | . . . . . Garrison 2 | . . . . 2 Intercept . | . . . . . Searches Triggered . | . . . . . Construction Impeded . | . . . . . Haulers Reinforced . | . . . . . Active Scanning Responses . | . . . . . Cargo Convoy Interrupts . | . . . . . Stealth | -11 -10 -10 -10 -8 --------- Run | Yrd Mat Min Sub Mat Distress Signals 2 | . . . . 2 Communications Jammed . | . . . . . Distress Signals . | . . . . . Times Spotted 48 | . 4 2 21 21 Peak Tracking Total 6 | . 2 2 5 6 Tactical Retreats 3 | . 1 . . 2 Traps | -11 -10 -10 -10 -8 ------- Run | Yrd Mat Min Sub Mat Traps Triggered . | . . . . . Indirectly . | . . . . . Trap Hack Attempts . | . . . . . Triggered . | . . . . . Disarmed 6 | . 6 . . . Reprogrammed . | . . . . . Reused . | . . . . . Traps Extracted . | . . . . . Installed . | . . . . . Triggered . | . . . . . Machines | -11 -10 -10 -10 -8 ---------- Run | Yrd Mat Min Sub Mat Machines Disabled 7 | . . . 3 4 Max in Single Turn 4 | . . . 1 4 Machines Repaired . | . . . . . Machines Dismantled . | . . . . . Machines Sabotaged . | . . . . . Overloaded Fab Kills . | . . . . . Hacking | -11 -10 -10 -10 -8 --------- Run | Yrd Mat Min Sub Mat Machines Accessed 10 | . 2 1 2 5 Terminals 7 | . 2 1 . 4 Fabricators . | . . . . . Repair Stations . | . . . . . Recycling Units 1 | . . . . 1 Scanalyzers . | . . . . . Garrison Access . | . . . . . Total Hacks 45 | . 8 4 13 20 Successful 45 | . 8 4 13 20 Failed . | . . . . . Catastrophic . | . . . . . Database Lockouts . | . . . . . Manual . | . . . . . Terminals 28 | . 8 4 . 16 Fabricators . | . . . . . Repair Stations . | . . . . . Recycling Units 4 | . . . . 4 Scanalyzers . | . . . . . Garrison Access . | . . . . . Terminal Hacks 41 | . 8 4 13 16 Record 28 | . 2 3 12 11 Prototype ID Bank 1 | . 1 . . . Alert Level 3 | . 1 . . 2 Locate Traps 2 | . 1 . . 1 Disarm Traps 1 | . 1 . . . Surveillance Status 1 | . 1 . . . Patrol Status 1 | . 1 . . . Assault Status 1 | . . . . 1 Zone Layout 2 | . . 1 . 1 Derelict Proto ID Bank 1 | . . . 1 . Fabricator Hacks . | . . . . . Repair Station Hacks . | . . . . . Recycling Unit Hacks 4 | . . . . 4 Process 1 | . . . . 1 Report Inventory 1 | . . . . 1 Retrieve Matter 1 | . . . . 1 Retrieve Components 1 | . . . . 1 Scanalyzer . | . . . . . Garrison Access Hacks . | . . . . . Unauthorized Hacks . | . . . . . Terminals . | . . . . . Fabricators . | . . . . . Repair Stations . | . . . . . Recycling Units . | . . . . . Scanalyzers . | . . . . . Garrison Access . | . . . . . Data Cores Recovered . | . . . . . Used . | . . . . . Hacking Detections 5 | . 2 . . 3 Full Trace Events 3 | . 1 . . 2 Feedback Events . | . . . . . Feedback Blocked . | . . . . . Robot Schematics Acquired . | . . . . . Robots Built . | . . . . . Authchips . | . . . . . Time . | . . . . . Total Robot Build Rating . | . . . . . Part Schematics Acquired . | . . . . . Parts Built . | . . . . . Authchips . | . . . . . Time . | . . . . . Total Part Build Rating . | . . . . . Parts Repaired . | . . . . . Time . | . . . . . Parts Recycled . | . . . . . Recycled Matter . | . . . . . Retrieved Matter 218 | . . . . 218 Retrieved Components 10 | . . . . 10 Parts Scanalyzed . | . . . . . Part Schematics Acquired . | . . . . . Parts Damaged . | . . . . . Bothacking | -11 -10 -10 -10 -8 ------------ Run | Yrd Mat Min Sub Mat Used RIF Installer . | . . . . . Robots Hacked . | . . . . . Non-combat . | . . . . . Combat . | . . . . . Robot Hacks Applied . | . . . . . Relay Couplers Released . | . . . . . Fabnet Peak Effective % . | . . . . . Robots Rewired . | . . . . . Allies Hacked . | . . . . . Hacks Repelled . | . . . . . Allies | -11 -10 -10 -10 -8 -------- Run | Yrd Mat Min Sub Mat Total Allies 6 | . . 2 4 . Largest Group 3 | . . 2 3 3 Highest-Rated Group 57 | . . 42 57 57 Highest-Rated Ally 31 | . . 31 31 19 Total Orders . | . . . . . Ally Attacks 51 | . . 2 25 24 Total Damage 664 | . . 44 228 392 Kills 11 | . . 1 4 6 Allies Corrupted . | . . . . . Allies Melted 1 | . . . 1 . Intel | -11 -10 -10 -10 -8 ------- Run | Yrd Mat Min Sub Mat Robot Analysis Total . | . . . . . Derelict Logs Recovered 3 | . . 1 2 . Drone Launches . | . . . . . Drone Recoveries . | . . . . . Exploration | -11 -10 -10 -10 -8 ------------- Run | Yrd Mat Min Sub Mat Turns Passed 11723 | 82 577 935 8459 1670 Spaces Moved 3353 | 55 314 570 1979 435 Core 84 | 24 . . 36 24 Treads 2671 | 31 314 570 1345 411 Legs . | . . . . . Wheels 598 | . . . 598 . Hover . | . . . . . Flight . | . . . . . Fastest Speed 50 | 50 160 160 160 50 Average Speed 329 | 122 160 160 411 325 Slowest Speed 3550 | 160 160 160 3550 430 Overloaded Moves . | . . . . . Propulsion Burnouts . | . . . . . Robots Hopped . | . . . . . Cave-ins Triggered . | . . . . . Exploration Rate (%) 52 | 4 49 93 69 48 Regions Visited 4 Branch Regions 2 Pre-discovered Areas 3 | . . 1 2 . Known Exits Taken 4 | 1 1 1 1 . Unknown Exits Taken . | . . . . . Scrap Searched 4 | . . 1 3 . Spaces Dug 10 | . . . 10 . Terrain Destroyed 211 | . . . 148 63 Melee . | . . . . . Projectile 1 | . . . 1 . AOE 210 | . . . 147 63 Terrain Rammed . | . . . . . Walls Destroyed . | . . . . . Machines Disabled . | . . . . . Actions | -11 -10 -10 -10 -8 --------- Run | Yrd Mat Min Sub Mat Total 3856 | 70 379 595 2188 624 Wait 202 | . 21 4 58 119 Move 3349 | 54 313 569 1978 435 Hop . | . . . . . Pick Up 88 | 9 19 8 32 20 Fast Attach . | . . . . . Attach 32 | 6 5 3 5 13 Detach 4 | . . 2 1 1 Swap 28 | . 3 3 14 8 Drop 37 | 1 8 5 23 . Fire 113 | . 9 . 77 27 Melee 1 | . . 1 . . Ram . | . . . . . Kick . | . . . . . Crush 2 | . 1 . . 1 Escape Stasis . | . . . . . Rewire . | . . . . . Trap . | . . . . . Miscellaneous . | . . . . . Route ------- -11/Scrapyard -10/Materials (discovered 3 exits: *Mat x2 / *Min) -10/Mines (discovered 3 exits: *Mat x2 / *Sub) -10/Subcaves -8/Materials (discovered 3 exits: *Fac x2 / *Sto) History --------- Turn | Location | Event 7 | -11/Scrapyard | Identified exit to Materials 7 | -11/Scrapyard | Discovered exit to Materials (range 16) 83 | -11/Scrapyard | Entered Materials 83 | -10/Materials | Evolved 1 slot: Utility x1 308 | -10/Materials | Build established: Hacker-Mutant 323 | -10/Materials | Identified exit to Materials 323 | -10/Materials | Discovered exit to Materials (range 4) 543 | -10/Materials | Discovered exit to Materials (range 10) 646 | -10/Materials | Identified exit to Mines 646 | -10/Materials | Discovered exit to Mines (range 8) 660 | -10/Materials | Entered Mines 802 | -10/Mines | Found a hidden stash of uninstalled traps 977 | -10/Mines | Joined a pair of Derelicts in attacking an 0b10 outpost 1119 | -10/Mines | Discovered exit to Materials (range 5) 1429 | -10/Mines | Identified exit to Subcaves 1429 | -10/Mines | Discovered exit to Subcaves (range 8) 1495 | -10/Mines | Learned location of Storage (-8) 1523 | -10/Mines | Discovered exit to Materials (range 7) 1595 | -10/Mines | Entered Subcaves 1595 | -10/Subcaves | Accompanied by 2 allies 1600 | -10/Subcaves | Led the pair of lost Derelicts to an unsafe place 1602 | -10/Subcaves | Ambushed by Subdwellers from Twisted Machinery 1709 | -10/Subcaves | Ambushed by swarm of Subdwellers 1764 | -10/Subcaves | Lost 5 allies 1777 | -10/Subcaves | Visited Clippyterm 1782 | -10/Subcaves | Learned Factory fabricator intel 2430 | -10/Subcaves | Ambushed by Subdweller buried in earth 2439 | -10/Subcaves | Ambushed by Subdweller buried in earth 2445 | -10/Subcaves | Ambushed by Subdweller buried in earth 2859 | -10/Subcaves | Build established: Hauler-Mutant 3416 | -10/Subcaves | Learned location of Zion (-7) 3985 | -10/Subcaves | A swath of the cavern ceiling suddenly collapsed 4119 | -10/Subcaves | Shifting Twisted Machinery released Spk. Treads 4142 | -10/Subcaves | Shifting Twisted Machinery released Sub. Optics 4357 | -10/Subcaves | Shifting Twisted Machinery released Sub. Laser 5059 | -10/Subcaves | Shifting Twisted Machinery released Mak. Light Armor Plating 8298 | -10/Subcaves | Visited triangular shrine 8310 | -10/Subcaves | Learned location of Mines (-10) 8332 | -10/Subcaves | Found Prototype Device 8333 | -10/Subcaves | Identified V3-11A's Pendant 8338 | -10/Subcaves | Befriended Subdweller 9192 | -10/Subcaves | Visited 4L-MR0's lab 9444 | -10/Subcaves | Approached by friendly Subdweller 9453 | -10/Subcaves | Found Tower Shield 9563 | -10/Subcaves | Befriended Subdweller 9703 | -10/Subcaves | Befriended Subdweller 9824 | -10/Subcaves | Identified exit to Materials 9824 | -10/Subcaves | Discovered exit to Materials (range 8) 10054 | -10/Subcaves | Entered Materials 10054 | -8/Materials | Accompanied by 3 allies 10054 | -8/Materials | Evolved 4 slots: Propulsion x2, Utility x2 10055 | -8/Materials | Attached Tower Shield, gained temporary slots: Power, Propulsion x2, Utility x2, Weapon x2 10109 | -8/Materials | Identified exit to Storage 10109 | -8/Materials | Discovered exit to Storage (range 11) 10359 | -8/Materials | Build established: Hauler-Tank 10977 | -8/Materials | Identified exit to Factory 10977 | -8/Materials | Discovered exit to Factory (range 10) 11392 | -8/Materials | Discovered exit to Factory (range 4) 11526 | -8/Materials | Garrison activated, responded to threat 11686 | -8/Materials | Core integrity fell below 50% 11697 | -8/Materials | Lost 10 parts (1p5n2u2w) 11724 | -8/Materials | Self-destructed Last Messages --------------- 11703_ U-05 Engineer lays Concrete. 11703_ Acquired Lgt. Treads. 11704_ R-06 Scavenger inserts Particle Charger into recycling unit. 11704_ U-05 Engineer lays Concrete. 11705_ R-06 Scavenger collects Imp. Grenade Launcher. 11705_ U-05 Engineer lays Concrete. 11709_ R-06 Scavenger collects Weapon Shielding. 11709_ U-05 Engineer lays Concrete. 11711_ U-05 Engineer builds a Door. 11711_ U-05 Engineer builds a Wall. 11713_ R-06 Scavenger collects Sub. Optics. 11715_ U-05 Engineer lays Concrete. 11717_ R-06 Scavenger collects Deuterium Engine. 11717_ U-05 Engineer lays Concrete. 11718_ U-05 Engineer builds a Wall. 11719_ U-05 Engineer lays Concrete. 11721_ R-06 Scavenger collects Beam Rifle. 11722_ U-05 Engineer lays Concrete. Map ----- +----------------------------------------------------+ | ?????????????????????????????????????????????????? | | ?????????????????????????????????????????????????? | | ?????????????????????????????????????????????????? | | ?????????????????????????????????????????????????? | | ?????????????????????????????????????????????????? | | ?????????????????????????????????????????????????? | | ??????????????????????????????????? ?????????????? | | ??????????????????????????????????# ????????????? | | ??????????????????????????????????# ????????????? | | ??????????????????????????????????# ????????????? | | ?????????????????????????????????? ????????????? | | ??????????????????????????????????# ???????????? | | ????????????????????????????????### ?######????? | | ????????????????????????????????# % ?# #????? | | ????????????????????????????????# % # #????? | | ??????????????????????????????### # # ###### | | ???????????????????????????????! # % #[ ## "" | | ???????????????????????????????? # % # ## "" | | ????????????????????????????????? + # ## "" | | ??????????????????????????????????# # ## | | ???????????????????????############ # ## / | | ???????????????????????# ## " "" | | ???????????????????????# # !%= """ | | ???????????????????????# !! # | | ???????????????????????# !! + | | ???????????????????????# @ # | | ???????????????????????# ; | | ???????????????????????#! | | ???????????????????????# | | ???????????????????????######### ! | | ???????????????????????????????# u ] | | ???????????????????????????????# # * [ | | ???????????????????????????????### r / | | ??????????????????????????" / / | | ?????????????????????????Y" #####+#######" "### | | ????????????????????????? ??? [ "R"#?? | | ?????????????????????????? ????# """"" ####"""#?? | | ???????????????????????????????# ""T""????#####?? | | ???????????????????????????????# ??????????? | | ???????????????????????????????# ?? ??????????? | | ???????????????????????????????#???"" ???????????? | | ?????????????????????????????????????????????????? | | ?????????????????????????????????????????????????? | | ?????????????????????????????????????????????????? | | ?????????????????????????????????????????????????? | | | | | | | | | | | +----------------------------------------------------+ Best States ------------- Heat Dissipation 31 Energy Generation 19 Energy Capacity 250 Matter Stores 300 Matter Capacity 300 Sight Range 21 Terrain Scan Density 10 Armor Coverage 2100 Resistance: KI 35 Resistance: TH 35 Resistance: EX 35 Resistance: EM 35 Resistance: I 35 Resistance: S 35 Resistance: P 35 Core Shielding 20 Weapon Shielding 33 Evasion (%) 50 Targeting Accuracy 5 Recoil Reduction 6 Offensive Hacking 20 Item Schematics ----------------- None Robot Schematics ------------------ None Fabricated ------------ Nothing Alien Tech Used ----------------- None Achievements -------------- None Challenges ------------ None Game ------ Seed CentriumColdFlail Manual? 0 Play Time 00:51:09 Cumulative 4.5 hours Start 2024.09.09 @ 00:12:43 End 2024.09.09 @ 01:04:13 Sessions 1 Manual Loads 0 Difficulty Explorer Special Mode None Game No. 3 Rogue 1 Adventurer 0 Explorer 2 Win Type - Total 0 Types 0/0/0/0/0/0/0/0/0 Lore% 7 Gallery% 12 Achievement% 28 Wizard Run 0 Options --------- Layout 1 ASCII 0 Keyboard 0 Movement Mouse Keybinds 0 Fullscreen 1 Font 24/Smallcaps Map View 50x35 Zoom Use 0% Tactical HUD 1 Map Filters NONE Filters NONE Steam 1 RUN: b77c325a-9476-4f99-b0ee-01cc7bd9cb4a